[Event "FIDE Grand Swiss 2023"]
[Site "Villa Marina, Douglas, Isle of Man, Isle Of Man"]
[Date "2023.11.05"]
[Round "11.47"]
[White "Warmerdam, Max"]
[Black "Gurel, Ediz"]
[Result "1/2-1/2"]
[TimeControl "40/90 + 30 + 30s/move"]
[WhiteFideId "1048104"]
[BlackFideId "44507356"]
[WhiteElo "2636"]
[BlackElo "2514"]

1. d4 {[%clk 01:40:51]} {[%emt 00:00:08]} d5 {[%clk 01:40:49]} {[%emt
00:00:12]} 2. c4 {[%clk 01:41:15]} {[%emt 00:00:06]} c6 {[%clk 01:41:09]}
{[%emt 00:00:10]} 3. Nf3 {[%clk 01:41:06]} {[%emt 00:00:38]} Nf6 {[%clk
01:41:24]} {[%emt 00:00:15]} 4. Nc3 {[%clk 01:41:29]} {[%emt 00:00:07]} e6
{[%clk 01:41:39]} {[%emt 00:00:16]} 5. e3 {[%clk 01:41:25]} {[%emt 00:00:33]}
Nbd7 {[%clk 01:41:37]} {[%emt 00:00:33]} 6. Be2 {[%clk 01:41:30]} {[%emt
00:00:24]} Bd6 {[%clk 01:40:33]} {[%emt 00:01:35]} 7. O-O {[%clk 01:41:17]}
{[%emt 00:00:43]} O-O {[%clk 01:40:44]} {[%emt 00:00:19]} 8. b3 {[%clk
01:40:58]} {[%emt 00:00:50]} b6 {[%clk 01:36:01]} {[%emt 00:05:14]} 9. a4
{[%clk 01:38:20]} {[%emt 00:03:06]} Bb7 {[%clk 01:32:33]} {[%emt 00:03:59]} 10.
Bb2 {[%clk 01:35:06]} {[%emt 00:03:44]} Re8 {[%clk 01:27:57]} {[%emt 00:05:05]}
11. Qc2 {[%clk 01:30:39]} {[%emt 00:04:58]} Rc8 {[%clk 01:22:48]} {[%emt
00:05:38]} 12. Rfd1 {[%clk 01:11:40]} {[%emt 00:19:30]} a5 {[%clk 01:03:01]}
{[%emt 00:20:17]} 13. Rac1 {[%clk 01:04:09]} {[%emt 00:08:01]} Qe7 {[%clk
01:01:48]} {[%emt 00:01:43]} 14. h3 {[%clk 01:01:59]} {[%emt 00:02:39]} h6
{[%clk 01:00:25]} {[%emt 00:01:54]} 15. Qb1 {[%clk 00:57:24]} {[%emt 00:05:05]}
Bb8 {[%clk 00:56:05]} {[%emt 00:04:50]} 16. Re1 {[%clk 00:54:50]} {[%emt
00:03:03]} Bd6 {[%clk 00:51:30]} {[%emt 00:05:05]} 17. e4 {[%clk 00:48:17]}
{[%emt 00:07:03]} dxe4 {[%clk 00:51:44]} {[%emt 00:00:16]} 18. Nxe4 {[%clk
00:48:42]} {[%emt 00:00:04]} Nxe4 {[%clk 00:49:01]} {[%emt 00:03:14]} 19. Qxe4
{[%clk 00:48:38]} {[%emt 00:00:34]} Nf6 {[%clk 00:49:21]} {[%emt 00:00:09]} 20.
Qh4 {[%clk 00:46:22]} {[%emt 00:02:46]} Bb4 {[%clk 00:39:26]} {[%emt 00:10:26]}
21. Red1 {[%clk 00:45:14]} {[%emt 00:01:38]} c5 {[%clk 00:38:59]} {[%emt
00:00:57]} 22. Ne5 {[%clk 00:42:33]} {[%emt 00:03:10]} cxd4 {[%clk 00:38:43]}
{[%emt 00:00:47]} 23. Bxd4 {[%clk 00:41:43]} {[%emt 00:01:19]} Bc5 {[%clk
00:38:33]} {[%emt 00:00:40]} 24. Ng4 {[%clk 00:35:20]} {[%emt 00:06:54]} Bxd4
{[%clk 00:32:14]} {[%emt 00:06:49]} 25. Rxd4 {[%clk 00:35:44]} {[%emt
00:00:05]} Ne4 {[%clk 00:31:12]} {[%emt 00:01:33]} 26. Qxe7 {[%clk 00:35:23]}
{[%emt 00:00:50]} Rxe7 {[%clk 00:31:38]} {[%emt 00:00:05]} 27. Rcd1 {[%clk
00:26:38]} {[%emt 00:09:14]} f6 {[%clk 00:18:02]} {[%emt 00:14:07]} 28. Bd3
{[%clk 00:25:07]} {[%emt 00:02:00]} Nc5 {[%clk 00:09:49]} {[%emt 00:08:44]} 29.
Bg6 {[%clk 00:24:50]} {[%emt 00:00:46]} Rf8 {[%clk 00:10:17]} {[%emt 00:00:03]}
30. Rd6 {[%clk 00:20:45]} {[%emt 00:04:35]} Nxb3 {[%clk 00:10:42]} {[%emt
00:00:06]} 31. Rxb6 {[%clk 00:18:42]} {[%emt 00:02:32]} Nc5 {[%clk 00:11:09]}
{[%emt 00:00:04]} 32. Rb5 {[%clk 00:14:10]} {[%emt 00:05:01]} Nxa4 {[%clk
00:08:34]} {[%emt 00:03:05]} 33. Rxa5 {[%clk 00:09:31]} {[%emt 00:05:09]} Nc3
{[%clk 00:09:01]} {[%emt 00:00:03]} 34. Re1 {[%clk 00:09:18]} {[%emt 00:00:43]}
Rc8 {[%clk 00:08:58]} {[%emt 00:00:33]} 35. c5 {[%clk 00:04:42]} {[%emt
00:05:06]} Nd5 {[%clk 00:08:10]} {[%emt 00:01:18]} 36. g3 {[%clk 00:05:04]}
{[%emt 00:00:07]} Bc6 {[%clk 00:05:37]} {[%emt 00:03:04]} 37. h4 {[%clk
00:04:40]} {[%emt 00:00:54]} Kf8 {[%clk 00:05:21]} {[%emt 00:00:46]} 38. Ra6
{[%clk 00:03:40]} {[%emt 00:01:30]} Bb5 {[%clk 00:04:26]} {[%emt 00:01:25]} 39.
Rd6 {[%clk 00:03:49]} {[%emt 00:00:20]} Be8 {[%clk 00:02:35]} {[%emt 00:02:23]}
40. Bxe8 {[%clk 00:03:05]} {[%emt 00:01:14]} Kxe8 {[%clk 00:01:40]} {[%emt
00:01:24]} 41. Rdxe6 {[%clk 00:49:20]} {[%emt 00:04:14]} 1/2-1/2

[Event "FIDE Grand Swiss 2023"]
[Site "Villa Marina, Douglas, Isle of Man, Isle Of Man"]
[Date "2023.11.05"]
[Round "11.48"]
[White "Iturrizaga Bonelli, Eduardo"]
[Black "Greenfeld, Alon"]
[Result "1-0"]
[TimeControl "40/90 + 30 + 30s/move"]
[WhiteFideId "3901211"]
[BlackFideId "2800039"]
[WhiteElo "2615"]
[BlackElo "2455"]

1. c4 {[%clk 01:40:56]} {[%emt 00:00:03]} c5 {[%clk 01:36:34]} {[%emt
00:04:16]} 2. Nc3 {[%clk 01:41:05]} {[%emt 00:00:31]} Nf6 {[%clk 01:32:53]}
{[%emt 00:04:11]} 3. g3 {[%clk 01:40:03]} {[%emt 00:01:32]} e6 {[%clk
01:32:11]} {[%emt 00:01:12]} 4. Nf3 {[%clk 01:40:19]} {[%emt 00:00:13]} Nc6
{[%clk 01:31:13]} {[%emt 00:01:30]} 5. Bg2 {[%clk 01:39:59]} {[%emt 00:00:48]}
d5 {[%clk 01:30:51]} {[%emt 00:00:53]} 6. cxd5 {[%clk 01:40:17]} {[%emt
00:00:13]} exd5 {[%clk 01:29:58]} {[%emt 00:01:22]} 7. d4 {[%clk 01:40:35]}
{[%emt 00:00:12]} cxd4 {[%clk 01:30:17]} {[%emt 00:00:12]} 8. Nxd4 {[%clk
01:40:59]} {[%emt 00:00:06]} Bc5 {[%clk 01:30:35]} {[%emt 00:00:11]} 9. Nxc6
{[%clk 01:39:20]} {[%emt 00:02:10]} bxc6 {[%clk 01:29:45]} {[%emt 00:01:20]} 10.
Na4 {[%emt 00:02:36]} Bb6 {[%clk 01:27:43]} 11. Nxb6 {[%clk 01:40:08]} {[%emt
00:00:07]} axb6 {[%clk 01:27:04]} {[%emt 00:01:09]} 12. Qc2 {[%clk 01:40:03]}
{[%emt 00:00:36]} Bd7 {[%clk 01:25:08]} {[%emt 00:02:25]} 13. O-O {[%clk
01:39:13]} {[%emt 00:01:20]} O-O {[%clk 01:25:16]} {[%emt 00:00:22]} 14. a4
{[%clk 01:39:39]} {[%emt 00:00:04]} Re8 {[%clk 01:17:29]} {[%emt 00:08:16]} 15.
b4 {[%clk 01:03:43]} {[%emt 00:36:27]} Ne4 {[%clk 01:13:12]} {[%emt 00:04:47]}
16. Be3 {[%clk 00:58:27]} {[%emt 00:05:47]} h5 {[%clk 01:11:38]} {[%emt
00:02:03]} 17. Rfd1 {[%clk 00:52:47]} {[%emt 00:06:10]} h4 {[%clk 01:00:34]}
{[%emt 00:11:34]} 18. b5 {[%clk 00:53:14]} {[%emt 00:00:04]} cxb5 {[%clk
00:56:57]} {[%emt 00:04:06]} 19. Rxd5 {[%clk 00:49:59]} {[%emt 00:03:46]} Nf6
{[%clk 00:55:47]} {[%emt 00:01:40]} 20. Bg5 {[%clk 00:48:08]} {[%emt 00:02:21]}
Qe7 {[%clk 00:39:08]} {[%emt 00:17:08]} 21. Bxh4 {[%clk 00:20:09]} {[%emt
00:28:29]} bxa4 {[%clk 00:34:26]} {[%emt 00:05:12]} 22. Rd4 {[%clk 00:07:10]}
{[%emt 00:13:29]} Ra5 {[%clk 00:28:53]} {[%emt 00:06:03]} 23. Qd2 {[%clk
00:05:47]} {[%emt 00:01:52]} a3 {[%clk 00:28:03]} {[%emt 00:01:21]} 24. h3
{[%clk 00:02:43]} {[%emt 00:03:35]} Qe5 {[%clk 00:21:01]} {[%emt 00:07:31]} 25.
e3 {[%clk 00:01:57]} {[%emt 00:01:16]} Bf5 {[%clk 00:14:21]} {[%emt 00:07:10]}
26. g4 {[%clk 00:02:08]} {[%emt 00:00:20]} Ne4 {[%clk 00:13:52]} {[%emt
00:00:58]} 27. Qb4 {[%clk 00:02:14]} {[%emt 00:00:25]} Bh7 {[%clk 00:13:09]}
{[%emt 00:01:13]} 28. f4 {[%clk 00:01:11]} {[%emt 00:01:33]} Qb5 {[%clk
00:06:35]} {[%emt 00:07:04]} 29. Bxe4 {[%clk 00:00:53]} {[%emt 00:00:48]} Bxe4
{[%clk 00:06:52]} {[%emt 00:00:13]} 30. Rxe4 {[%clk 00:01:18]} {[%emt
00:00:05]} Rxe4 {[%clk 00:07:13]} {[%emt 00:00:09]} 31. Qxe4 {[%clk 00:01:45]}
Qb2 {[%clk 00:07:31]} {[%emt 00:00:14]} 32. Rd1 {[%clk 00:01:04]} {[%emt
00:01:11]} g6 {[%clk 00:06:41]} {[%emt 00:01:21]} 33. Qe8+ {[%clk 00:01:20]}
{[%emt 00:00:14]} 1-0

[Event "FIDE Grand Swiss 2023"]
[Site "Villa Marina, Douglas, Isle of Man, Isle Of Man"]
[Date "2023.11.05"]
[Round "11.49"]
[White "Kozak, Adam"]
[Black "Karthikeyan, Murali"]
[Result "1-0"]
[TimeControl "40/90 + 30 + 30s/move"]
[WhiteFideId "753246"]
[BlackFideId "5074452"]
[WhiteElo "2566"]
[BlackElo "2611"]

1. e4 {[%clk 01:40:52]} {[%emt 00:00:04]} c5 {[%clk 01:40:32]} {[%emt
00:00:32]} 2. Nf3 {[%clk 01:41:14]} {[%emt 00:00:08]} Nc6 {[%clk 01:40:54]}
{[%emt 00:00:08]} 3. Bc4 {[%clk 01:40:37]} {[%emt 00:01:06]} e6 {[%clk
01:40:26]} {[%emt 00:00:58]} 4. O-O {[%clk 01:40:55]} {[%emt 00:00:12]} a6
{[%clk 01:39:49]} {[%emt 00:01:07]} 5. Re1 {[%clk 01:40:28]} {[%emt 00:00:58]}
Be7 {[%clk 01:33:38]} {[%emt 00:06:40]} 6. c3 {[%clk 01:33:30]} {[%emt
00:07:29]} d5 {[%clk 01:33:21]} {[%emt 00:00:46]} 7. exd5 {[%clk 01:33:53]}
{[%emt 00:00:07]} exd5 {[%clk 01:33:47]} {[%emt 00:00:04]} 8. Bf1 {[%clk
01:33:49]} {[%emt 00:00:34]} Nf6 {[%clk 01:33:54]} {[%emt 00:00:24]} 9. d4
{[%clk 01:33:23]} {[%emt 00:00:56]} O-O {[%clk 01:32:46]} {[%emt 00:01:38]} 10.
Be3 {[%clk 01:27:46]} {[%emt 00:06:07]} cxd4 {[%clk 01:27:01]} {[%emt
00:06:15]} 11. Nxd4 {[%clk 01:27:06]} {[%emt 00:01:10]} Ng4 {[%clk 01:20:23]}
{[%emt 00:07:08]} 12. Nd2 {[%clk 01:03:31]} {[%emt 00:24:05]} Nxe3 {[%clk
01:19:24]} {[%emt 00:01:28]} 13. Rxe3 {[%clk 01:02:38]} {[%emt 00:01:23]} Nxd4
{[%clk 01:17:21]} {[%emt 00:02:33]} 14. cxd4 {[%clk 01:03:01]} {[%emt
00:00:08]} Bg5 {[%clk 01:12:15]} {[%emt 00:05:36]} 15. Rc3 {[%clk 01:00:39]}
{[%emt 00:02:52]} Bf6 {[%clk 01:08:31]} {[%emt 00:04:13]} 16. Nf3 {[%clk
00:59:00]} {[%emt 00:02:09]} Qd6 {[%clk 01:05:36]} {[%emt 00:03:26]} 17. Qd2
{[%clk 00:49:46]} {[%emt 00:09:44]} Bf5 {[%clk 00:59:27]} {[%emt 00:06:37]} 18.
Re1 {[%clk 00:41:49]} {[%emt 00:08:29]} Rfe8 {[%clk 00:56:28]} {[%emt
00:03:29]} 19. Rce3 {[%clk 00:36:39]} {[%emt 00:05:39]} Rxe3 {[%clk 00:56:27]}
{[%emt 00:00:32]} 20. fxe3 {[%clk 00:35:09]} {[%emt 00:01:59]} Re8 {[%clk
00:51:21]} {[%emt 00:05:36]} 21. Bd3 {[%clk 00:27:30]} {[%emt 00:08:09]} Bd7
{[%clk 00:51:04]} {[%emt 00:00:47]} 22. a3 {[%clk 00:24:01]} {[%emt 00:04:00]}
g6 {[%clk 00:49:15]} {[%emt 00:02:19]} 23. Bb1 {[%clk 00:20:07]} {[%emt
00:04:24]} Kg7 {[%clk 00:48:15]} {[%emt 00:01:30]} 24. Rc1 {[%clk 00:18:38]}
{[%emt 00:01:59]} h5 {[%clk 00:45:16]} {[%emt 00:03:29]} 25. Qf2 {[%clk
00:15:57]} {[%emt 00:03:11]} Bb5 {[%clk 00:34:50]} {[%emt 00:10:56]} 26. Rc3
{[%clk 00:15:32]} {[%emt 00:00:55]} Qe6 {[%clk 00:33:24]} {[%emt 00:01:55]} 27.
h3 {[%clk 00:09:41]} {[%emt 00:06:21]} Re7 {[%clk 00:21:16]} {[%emt 00:12:38]}
28. Qg3 {[%clk 00:08:11]} {[%emt 00:02:01]} Be8 {[%clk 00:19:23]} {[%emt
00:02:22]} 29. Qf2 {[%clk 00:07:37]} {[%emt 00:01:04]} a5 {[%clk 00:19:04]}
{[%emt 00:00:49]} 30. Qd2 {[%clk 00:05:52]} {[%emt 00:02:15]} b6 {[%clk
00:18:19]} {[%emt 00:01:16]} 31. Qd3 {[%clk 00:04:28]} {[%emt 00:01:54]} Bd7
{[%clk 00:15:32]} {[%emt 00:03:17]} 32. Qd2 {[%clk 00:04:19]} {[%emt 00:00:39]}
Kf8 {[%clk 00:13:16]} {[%emt 00:02:45]} 33. Qf2 {[%clk 00:02:53]} {[%emt
00:01:56]} b5 {[%clk 00:10:47]} {[%emt 00:03:00]} 34. b4 {[%clk 00:02:00]}
{[%emt 00:01:24]} axb4 {[%clk 00:11:01]} {[%emt 00:00:15]} 35. axb4 {[%clk
00:02:28]} {[%emt 00:00:02]} Kg7 {[%clk 00:09:00]} {[%emt 00:02:30]} 36. Ba2
{[%clk 00:01:35]} {[%emt 00:01:24]} Be8 {[%clk 00:08:20]} {[%emt 00:01:10]} 37.
Qd2 {[%clk 00:00:34]} {[%emt 00:01:31]} Ra7 {[%clk 00:07:11]} {[%emt 00:01:39]}
38. Rc5 {[%clk 00:00:32]} {[%emt 00:00:33]} Be7 {[%clk 00:02:48]} {[%emt
00:04:52]} 39. Bxd5 {[%clk 00:00:40]} {[%emt 00:00:22]} Ra1+ {[%clk 00:00:46]}
{[%emt 00:02:32]} 40. Kf2 {[%clk 00:00:59]} {[%emt 00:00:10]} Qf6 {[%clk
00:00:34]} {[%emt 00:00:43]} 41. Rc1 {[%clk 00:38:19]} {[%emt 00:13:10]} Bxb4
{[%clk 00:49:51]} {[%emt 00:01:13]} 42. Qb2 {[%clk 00:31:41]} {[%emt 00:07:08]}
Ra4 {[%clk 00:44:53]} {[%emt 00:05:28]} 43. Qc2 {[%clk 00:27:06]} {[%emt
00:05:05]} Bd6 {[%clk 00:39:02]} {[%emt 00:06:20]} 44. Kg1 {[%clk 00:14:49]}
{[%emt 00:12:48]} Ra3 {[%clk 00:31:42]} {[%emt 00:07:50]} 45. e4 {[%clk
00:08:32]} {[%emt 00:06:46]} Bf4 {[%clk 00:27:35]} {[%emt 00:04:37]} 46. Rd1
{[%clk 00:05:06]} {[%emt 00:03:57]} Rxf3 {[%clk 00:11:47]} {[%emt 00:16:18]} 47.
gxf3 {[%clk 00:05:15]} {[%emt 00:00:21]} Bd7 {[%clk 00:11:33]} {[%emt
00:00:44]} 48. Qf2 {[%clk 00:01:38]} {[%emt 00:04:07]} Bxh3 {[%clk 00:10:46]}
{[%emt 00:01:17]} 49. Kh1 {[%clk 00:01:57]} {[%emt 00:00:10]} b4 {[%clk
00:09:22]} {[%emt 00:01:55]} 50. Rg1 {[%clk 00:01:32]} {[%emt 00:00:55]} Bd7
{[%clk 00:07:14]} {[%emt 00:02:37]} 51. Rg2 {[%clk 00:00:48]} {[%emt 00:01:15]}
Bh3 {[%clk 00:05:21]} {[%emt 00:02:24]} 52. Rg1 {[%clk 00:01:16]} {[%emt
00:00:02]} Bd7 {[%clk 00:05:45]} {[%emt 00:00:06]} 53. Rg2 {[%clk 00:01:42]}
{[%emt 00:00:04]} Qa6 {[%clk 00:05:03]} {[%emt 00:01:11]} 54. e5 {[%clk
00:00:52]} {[%emt 00:01:20]} Bf5 {[%clk 00:00:44]} {[%emt 00:04:49]} 55. Be4
{[%clk 00:00:32]} {[%emt 00:00:50]} Bd7 {[%clk 00:00:47]} {[%emt 00:00:27]} 56.
Bd5 {[%clk 00:00:32]} {[%emt 00:00:31]} Be6 {[%clk 00:00:36]} {[%emt 00:00:41]}
57. Be4 {[%clk 00:00:35]} {[%emt 00:00:27]} b3 {[%clk 00:00:48]} {[%emt
00:00:17]} 58. Qh4 {[%clk 00:00:32]} {[%emt 00:00:33]} Be3 {[%clk 00:15:30]}
{[%emt 00:00:49]} 1-0

[Event "FIDE Grand Swiss 2023"]
[Site "Villa Marina, Douglas, Isle of Man, Isle Of Man"]
[Date "2023.11.05"]
[Round "11.50"]
[White "Lazavik, Denis"]
[Black "Mareco, Sandro"]
[Result "1-0"]
[TimeControl "40/90 + 30 + 30s/move"]
[WhiteFideId "13515110"]
[BlackFideId "112275"]
[WhiteElo "2560"]
[BlackElo "2606"]

1. d4 {[%clk 01:40:53]} {[%emt 00:00:06]} Nf6 {[%clk 01:40:57]} {[%emt
00:00:05]} 2. c4 {[%clk 01:41:11]} {[%emt 00:00:12]} e6 {[%clk 01:41:25]}
{[%emt 00:00:02]} 3. Nf3 {[%clk 01:41:21]} {[%emt 00:00:19]} a6 {[%clk
01:41:51]} {[%emt 00:00:05]} 4. Nc3 {[%clk 01:38:17]} {[%emt 00:03:33]} d5
{[%clk 01:41:46]} {[%emt 00:00:36]} 5. cxd5 {[%clk 01:38:18]} {[%emt 00:00:28]}
exd5 {[%clk 01:42:11]} {[%emt 00:00:05]} 6. Bg5 {[%clk 01:38:30]} {[%emt
00:00:18]} Be6 {[%clk 01:42:37]} {[%emt 00:00:05]} 7. e3 {[%clk 01:38:32]}
{[%emt 00:00:27]} Nbd7 {[%clk 01:43:03]} {[%emt 00:00:05]} 8. Bd3 {[%clk
01:38:36]} {[%emt 00:00:25]} c6 {[%clk 01:43:25]} {[%emt 00:00:09]} 9. O-O
{[%clk 01:38:22]} {[%emt 00:00:43]} Bd6 {[%clk 01:43:53]} {[%emt 00:00:03]} 10.
Rc1 {[%clk 01:36:35]} {[%emt 00:02:16]} O-O {[%clk 01:42:10]} {[%emt 00:02:14]}
11. Nd2 {[%clk 01:23:29]} {[%emt 00:13:36]} Be7 {[%clk 01:25:04]} {[%emt
00:17:36]} 12. f4 {[%clk 01:14:12]} {[%emt 00:09:46]} Ng4 {[%clk 01:21:39]}
{[%emt 00:03:56]} 13. Bxe7 {[%clk 01:14:06]} {[%emt 00:00:35]} Qxe7 {[%clk
01:22:06]} {[%emt 00:00:04]} 14. Qe2 {[%clk 01:10:47]} {[%emt 00:03:48]} f5
{[%clk 01:21:57]} {[%emt 00:00:40]} 15. Nf3 {[%clk 01:10:42]} {[%emt 00:00:34]}
Ngf6 {[%clk 01:19:21]} {[%emt 00:03:07]} 16. Na4 {[%clk 01:08:46]} {[%emt
00:02:26]} Ne4 {[%clk 01:18:31]} {[%emt 00:01:20]} 17. Ne5 {[%clk 01:08:02]}
{[%emt 00:01:13]} Rae8 {[%clk 00:58:37]} {[%emt 00:20:25]} 18. a3 {[%clk
01:04:31]} {[%emt 00:04:00]} g5 {[%clk 00:45:30]} {[%emt 00:13:38]} 19. Nxd7
{[%clk 00:46:55]} {[%emt 00:18:06]} Bxd7 {[%clk 00:45:21]} {[%emt 00:00:39]} 20.
Bxe4 {[%clk 00:47:18]} {[%emt 00:00:06]} fxe4 {[%clk 00:44:52]} {[%emt
00:01:00]} 21. fxg5 {[%clk 00:47:34]} {[%emt 00:00:14]} Qxg5 {[%clk 00:45:06]}
{[%emt 00:00:15]} 22. Rxf8+ {[%clk 00:45:04]} {[%emt 00:03:01]} Rxf8 {[%clk
00:45:32]} {[%emt 00:00:05]} 23. Nc3 {[%clk 00:44:42]} {[%emt 00:00:51]} Bg4
{[%clk 00:44:03]} {[%emt 00:02:00]} 24. Qd2 {[%clk 00:44:11]} {[%emt 00:00:59]}
Qh6 {[%clk 00:25:07]} {[%emt 00:19:28]} 25. Qe1 {[%clk 00:38:03]} {[%emt
00:06:36]} Kh8 {[%clk 00:25:11]} {[%emt 00:00:27]} 26. Rc2 {[%clk 00:37:10]}
{[%emt 00:01:23]} Rg8 {[%clk 00:23:43]} {[%emt 00:01:59]} 27. Kh1 {[%clk
00:33:07]} {[%emt 00:04:32]} Rg5 {[%clk 00:20:14]} {[%emt 00:03:59]} 28. Rf2
{[%clk 00:31:19]} {[%emt 00:02:18]} Rh5 {[%clk 00:19:29]} {[%emt 00:01:16]} 29.
Qg1 {[%clk 00:30:41]} {[%emt 00:01:07]} a5 {[%clk 00:15:35]} {[%emt 00:04:25]}
30. Rf4 {[%clk 00:29:44]} {[%emt 00:01:25]} Be6 {[%clk 00:15:55]} {[%emt
00:00:11]} 31. Ne2 {[%clk 00:28:40]} {[%emt 00:01:33]} b6 {[%clk 00:16:09]}
{[%emt 00:00:17]} 32. b4 {[%clk 00:27:17]} {[%emt 00:01:53]} axb4 {[%clk
00:16:05]} {[%emt 00:00:34]} 33. axb4 {[%clk 00:27:42]} {[%emt 00:00:04]} Rh4
{[%clk 00:14:12]} {[%emt 00:02:24]} 34. Rxh4 {[%clk 00:25:47]} {[%emt
00:02:25]} Qxh4 {[%clk 00:13:17]} {[%emt 00:01:25]} 35. Nf4 {[%clk 00:26:09]}
{[%emt 00:00:07]} Bf7 {[%clk 00:12:53]} {[%emt 00:00:55]} 36. h3 {[%clk
00:23:51]} {[%emt 00:02:48]} Kg8 {[%clk 00:11:18]} {[%emt 00:02:05]} 37. Kh2
{[%clk 00:22:00]} {[%emt 00:02:20]} Qe7 {[%clk 00:10:21]} {[%emt 00:01:28]} 38.
Qe1 {[%clk 00:22:00]} {[%emt 00:00:30]} c5 {[%clk 00:06:53]} {[%emt 00:03:59]}
39. dxc5 {[%clk 00:19:01]} {[%emt 00:03:28]} bxc5 {[%clk 00:07:20]} {[%emt
00:00:03]} 40. bxc5 {[%clk 00:17:55]} {[%emt 00:01:37]} Qxc5 {[%clk 00:07:45]}
{[%emt 00:00:05]} 41. Qg3+ {[%clk 00:17:53]} {[%emt 00:00:30]} Kf8 {[%clk
00:08:02]} {[%emt 00:00:13]} 42. Ne2 {[%clk 00:18:02]} {[%emt 00:00:21]} Qe7
{[%clk 00:03:26]} {[%emt 00:05:07]} 43. Qf4 {[%clk 00:16:41]} {[%emt 00:01:51]}
Kg7 {[%clk 00:01:57]} {[%emt 00:02:00]} 44. Nd4 {[%clk 00:15:27]} {[%emt
00:01:43]} Bg6 {[%clk 00:02:21]} {[%emt 00:00:07]} 45. g4 {[%clk 00:07:11]}
{[%emt 00:08:45]} Qb4 {[%clk 00:41:54]} {[%emt 00:10:58]} 46. h4 {[%clk
00:53:25]} {[%emt 00:04:15]} Kg8 {[%clk 00:37:45]} {[%emt 00:04:39]} 47. h5
{[%clk 00:52:43]} {[%emt 00:01:11]} Qb2+ {[%clk 00:30:41]} {[%emt 00:07:35]} 48.
Kh3 {[%clk 00:51:14]} {[%emt 00:01:58]} 1-0